[Event "*** Titled Tuesday Blitz"]
[Site "Chess.com"]
[Date "2021.03.30"]
[Round "8"]
[White "Rytenko_V"]
[Black "TioCridineno"]
[Result "1/2-1/2"]
[WhiteElo "2390"]
[BlackElo "2284"]
[TimeControl "180+1"]
[EndTime "11:30:03 PDT"]
[Termination "Game drawn - insufficient material"]

1. d4 {[%clk 0:03:00.9]} 1... Nf6 {[%clk 0:02:56.2]} 2. Nc3 {[%clk 0:03:01]}
2... d5 {[%clk 0:02:55.4]} 3. Bg5 {[%clk 0:03:01.2]} 3... e6 {[%clk 0:02:54.5]}
4. e4 {[%clk 0:03:01.2]} 4... Be7 {[%clk 0:02:50.8]} 5. Bxf6 {[%clk 0:02:56.8]}
5... Bxf6 {[%clk 0:02:50.6]} 6. Nf3 {[%clk 0:02:57.5]} 6... dxe4 {[%clk
0:02:48.2]} 7. Nxe4 {[%clk 0:02:58.4]} 7... Nd7 {[%clk 0:02:48.3]} 8. Bd3 {[%clk
0:02:56.5]} 8... O-O {[%clk 0:02:48.2]} 9. c3 {[%clk 0:02:55.8]} 9... g6 {[%clk
0:02:42.4]} 10. Nxf6+ {[%clk 0:02:49.6]} 10... Qxf6 {[%clk 0:02:42]} 11. h4
{[%clk 0:02:43.3]} 11... h5 {[%clk 0:02:40.3]} 12. Qe2 {[%clk 0:02:37]} 12... c5
{[%clk 0:02:38.5]} 13. O-O-O {[%clk 0:02:21.7]} 13... cxd4 {[%clk 0:02:36.7]}
14. Nxd4 {[%clk 0:02:21.7]} 14... Nc5 {[%clk 0:02:24.9]} 15. Bc2 {[%clk
0:02:14.5]} 15... b6 {[%clk 0:02:22.8]} 16. f3 {[%clk 0:02:05.2]} 16... e5
{[%clk 0:02:15.2]} 17. Nb3 {[%clk 0:02:01.9]} 17... Nxb3+ {[%clk 0:02:11.1]} 18.
Bxb3 {[%clk 0:02:00.8]} 18... Be6 {[%clk 0:02:09.2]} 19. Bxe6 {[%clk 0:01:55.5]}
19... Qxe6 {[%clk 0:02:08.9]} 20. g4 {[%clk 0:01:54.5]} 20... Qxa2 {[%clk
0:02:07.4]} 21. gxh5 {[%clk 0:01:53.8]} 21... Rfd8 {[%clk 0:02:03.1]} 22. hxg6
{[%clk 0:01:40.6]} 22... fxg6 {[%clk 0:02:03]} 23. Qe4 {[%clk 0:01:28.6]} 23...
Kf7 {[%clk 0:00:55]} 24. h5 {[%clk 0:01:19.8]} 24... Qe6 {[%clk 0:00:25.8]} 25.
Rdg1 {[%clk 0:00:59.7]} 25... Qf6 {[%clk 0:00:15.2]} 26. hxg6+ {[%clk
0:00:54.8]} 26... Kg8 {[%clk 0:00:14.6]} 27. g7 {[%clk 0:00:50]} 27... Qf4+
{[%clk 0:00:13.6]} 28. Qxf4 {[%clk 0:00:49.8]} 28... exf4 {[%clk 0:00:14.5]} 29.
Rh4 {[%clk 0:00:25.6]} 29... Rac8 {[%clk 0:00:10.3]} 30. Rxf4 {[%clk 0:00:22.6]}
30... Rc7 {[%clk 0:00:10.1]} 31. Kc2 {[%clk 0:00:20.2]} 31... Rxg7 {[%clk
0:00:08.6]} 32. Rxg7+ {[%clk 0:00:18.8]} 32... Kxg7 {[%clk 0:00:08.9]} 33. b4
{[%clk 0:00:19.3]} 33... Rd7 {[%clk 0:00:08.9]} 34. Kb3 {[%clk 0:00:19.1]} 34...
Kg6 {[%clk 0:00:08.8]} 35. b5 {[%clk 0:00:16.3]} 35... Kg5 {[%clk 0:00:09]} 36.
Rf8 {[%clk 0:00:15.9]} 36... Kg6 {[%clk 0:00:08.6]} 37. Kb4 {[%clk 0:00:13.3]}
37... Kg7 {[%clk 0:00:07.6]} 38. Rf4 {[%clk 0:00:13.5]} 38... Kg6 {[%clk
0:00:07.5]} 39. c4 {[%clk 0:00:12.7]} 39... Kg5 {[%clk 0:00:07.6]} 40. Rf8
{[%clk 0:00:11.2]} 40... Kg6 {[%clk 0:00:07.8]} 41. Rf4 {[%clk 0:00:04.5]} 41...
Kg5 {[%clk 0:00:07.7]} 42. Re4 {[%clk 0:00:04.9]} 42... Kg6 {[%clk 0:00:08]} 43.
c5 {[%clk 0:00:05]} 43... bxc5+ {[%clk 0:00:07.8]} 44. Kxc5 {[%clk 0:00:05.9]}
44... Kf5 {[%clk 0:00:08.3]} 45. Kc6 {[%clk 0:00:05.9]} 45... Rh7 {[%clk
0:00:07.7]} 46. Ra4 {[%clk 0:00:04.6]} 46... Ke5 {[%clk 0:00:07.6]} 47. f4+
{[%clk 0:00:03.8]} 47... Kf5 {[%clk 0:00:07.7]} 48. Kc5 {[%clk 0:00:03.6]} 48...
Rc7+ {[%clk 0:00:07]} 49. Kd6 {[%clk 0:00:03.5]} 49... Rh7 {[%clk 0:00:07.3]}
50. Rc4 {[%clk 0:00:03.8]} 50... Rh6+ {[%clk 0:00:06.7]} 51. Kd5 {[%clk
0:00:03.8]} 51... Rh7 {[%clk 0:00:07.2]} 52. Rc6 {[%clk 0:00:03.8]} 52... Rb7
{[%clk 0:00:06.7]} 53. Rc5 {[%clk 0:00:02.5]} 53... Rh7 {[%clk 0:00:05.5]} 54.
Kc6+ {[%clk 0:00:03.4]} 54... Kxf4 {[%clk 0:00:05.7]} 55. Rd5 {[%clk 0:00:03.9]}
55... Ke4 {[%clk 0:00:05.9]} 56. Rd7 {[%clk 0:00:04]} 56... Rxd7 {[%clk
0:00:03.7]} 57. Kxd7 {[%clk 0:00:04.9]} 57... Kd4 {[%clk 0:00:04.1]} 58. Kc6
{[%clk 0:00:04.5]} 58... Kc4 {[%clk 0:00:04.5]} 59. b6 {[%clk 0:00:04.3]} 59...
axb6 {[%clk 0:00:04.3]} 60. Kxb6 {[%clk 0:00:05.2]} 1/2-1/2

[Event "*** Titled Tuesday Blitz"]
[Site "Chess.com"]
[Date "2021.03.30"]
[Round "8"]
[White "dpopadic"]
[Black "Vandros57"]
[Result "1-0"]
[WhiteElo "2297"]
[BlackElo "2197"]
[TimeControl "180+1"]
[EndTime "11:30:04 PDT"]
[Termination "dpopadic won on time"]

1. e4 {[%clk 0:03:00.9]} 1... c5 {[%clk 0:02:58.6]} 2. Nc3 {[%clk 0:02:57.2]}
2... e6 {[%clk 0:02:55.8]} 3. d3 {[%clk 0:02:56.5]} 3... Nc6 {[%clk 0:02:53.5]}
4. g4 {[%clk 0:02:56.1]} 4... h5 {[%clk 0:02:45.1]} 5. g5 {[%clk 0:02:55.4]}
5... h4 {[%clk 0:02:39.3]} 6. Nh3 {[%clk 0:02:53.8]} 6... Nge7 {[%clk
0:02:35.4]} 7. Bg2 {[%clk 0:02:52.8]} 7... Ng6 {[%clk 0:02:32.7]} 8. f4 {[%clk
0:02:47.6]} 8... d5 {[%clk 0:02:20.2]} 9. O-O {[%clk 0:02:38.7]} 9... dxe4
{[%clk 0:02:17.3]} 10. Nxe4 {[%clk 0:02:37.4]} 10... Nd4 {[%clk 0:02:09.7]} 11.
Be3 {[%clk 0:02:30.6]} 11... Nf5 {[%clk 0:02:04.9]} 12. Bf2 {[%clk 0:02:27.5]}
12... Qc7 {[%clk 0:01:59.4]} 13. Qd2 {[%clk 0:02:18.4]} 13... Be7 {[%clk
0:01:57.7]} 14. c3 {[%clk 0:02:16.1]} 14... Bd7 {[%clk 0:01:56]} 15. Rad1 {[%clk
0:02:14.8]} 15... O-O {[%clk 0:01:50.7]} 16. Kh1 {[%clk 0:02:10.6]} 16... Rad8
{[%clk 0:01:45.3]} 17. Bg1 {[%clk 0:02:09.9]} 17... Bc6 {[%clk 0:01:43.7]} 18.
Qe2 {[%clk 0:02:09.6]} 18... b6 {[%clk 0:01:26.6]} 19. Bf3 {[%clk 0:01:50.1]}
19... Nd6 {[%clk 0:01:24.2]} 20. Be3 {[%clk 0:01:42.7]} 20... Nxe4 {[%clk
0:01:21.6]} 21. dxe4 {[%clk 0:01:41.4]} 21... Rxd1 {[%clk 0:01:19.7]} 22. Rxd1
{[%clk 0:01:40.7]} 22... Rd8 {[%clk 0:01:17.6]} 23. Kg1 {[%clk 0:01:36.5]} 23...
Rxd1+ {[%clk 0:01:13.5]} 24. Qxd1 {[%clk 0:01:35.9]} 24... Qd6 {[%clk
0:01:09.4]} 25. Qxd6 {[%clk 0:01:34.7]} 25... Bxd6 {[%clk 0:01:08.8]} 26. Kf2
{[%clk 0:01:34.5]} 26... f5 {[%clk 0:01:05.1]} 27. exf5 {[%clk 0:01:22.9]} 27...
Bxf3 {[%clk 0:01:03.2]} 28. fxg6 {[%clk 0:01:14.1]} 28... Be4 {[%clk 0:00:59.2]}
29. Ng1 {[%clk 0:01:02.7]} 29... Bxg6 {[%clk 0:00:56.3]} 30. Nf3 {[%clk
0:01:02]} 30... Bb1 {[%clk 0:00:54.8]} 31. a3 {[%clk 0:01:01]} 31... g6 {[%clk
0:00:50.5]} 32. Nxh4 {[%clk 0:01:00.8]} 32... Kf7 {[%clk 0:00:50]} 33. Nf3
{[%clk 0:01:00.7]} 33... a5 {[%clk 0:00:42]} 34. Nd2 {[%clk 0:00:57.1]} 34...
Bd3 {[%clk 0:00:39.3]} 35. h4 {[%clk 0:00:54.7]} 35... a4 {[%clk 0:00:37.5]} 36.
Kf3 {[%clk 0:00:54.5]} 36... b5 {[%clk 0:00:35.4]} 37. Bf2 {[%clk 0:00:49.1]}
37... b4 {[%clk 0:00:27.6]} 38. Ne4 {[%clk 0:00:40.8]} 38... Bxe4+ {[%clk
0:00:02.8]} 39. Kxe4 {[%clk 0:00:40.5]} 39... bxa3 {[%clk 0:00:02.9]} 40. bxa3
{[%clk 0:00:40.3]} 40... c4 {[%clk 0:00:03.2]} 41. Kd4 {[%clk 0:00:36.4]} 41...
Bxa3 {[%clk 0:00:03.3]} 42. Kxc4 {[%clk 0:00:36.6]} 42... Bc1 {[%clk 0:00:02.6]}
43. Bg3 {[%clk 0:00:30.6]} 43... a3 {[%clk 0:00:02.4]} 44. Kb3 {[%clk
0:00:30.3]} 44... Ke7 {[%clk 0:00:02.2]} 45. c4 {[%clk 0:00:30.3]} 45... Kd7
{[%clk 0:00:03.1]} 46. Be1 {[%clk 0:00:18.6]} 46... Kc6 {[%clk 0:00:04]} 47. Bb4
{[%clk 0:00:16.8]} 47... Bxf4 {[%clk 0:00:02.3]} 48. Kxa3 {[%clk 0:00:15.8]}
48... Bg3 {[%clk 0:00:02.5]} 49. h5 {[%clk 0:00:13]} 49... gxh5 {[%clk
0:00:01.7]} 50. g6 {[%clk 0:00:13.1]} 50... Be5 {[%clk 0:00:01.6]} 51. Be1
{[%clk 0:00:11.1]} 51... h4 {[%clk 0:00:01.9]} 52. Bxh4 {[%clk 0:00:09.8]} 52...
Kc5 {[%clk 0:00:02.1]} 53. Kb3 {[%clk 0:00:09.7]} 53... Bg7 {[%clk 0:00:02.3]}
54. Be1 {[%clk 0:00:09.5]} 54... e5 {[%clk 0:00:02.6]} 55. Bc3 {[%clk
0:00:09.4]} 55... Kc6 {[%clk 0:00:01.8]} 56. Kb4 {[%clk 0:00:09.3]} 56... Kd6
{[%clk 0:00:01.8]} 57. Kb5 {[%clk 0:00:09.3]} 57... Kc7 {[%clk 0:00:01.9]} 58.
c5 {[%clk 0:00:09.2]} 58... Kc8 {[%clk 0:00:02.1]} 59. c6 {[%clk 0:00:09.5]}
59... Kc7 {[%clk 0:00:02.2]} 60. Kc5 {[%clk 0:00:10]} 60... Kc8 {[%clk
0:00:02.3]} 61. Kd5 {[%clk 0:00:10.2]} 61... Kc7 {[%clk 0:00:02.1]} 62. Bxe5+
{[%clk 0:00:10.3]} 62... Kc8 {[%clk 0:00:01.7]} 63. Bxg7 {[%clk 0:00:09.9]} 1-0

[Event "*** Titled Tuesday Blitz"]
[Site "Chess.com"]
[Date "2021.03.30"]
[Round "8"]
[White "TosicSrecko"]
[Black "Tpros"]
[Result "1-0"]
[WhiteElo "2325"]
[BlackElo "2450"]
[TimeControl "180+1"]
[EndTime "11:30:05 PDT"]
[Termination "TosicSrecko won on time"]

1. d4 {[%clk 0:03:00.9]} 1... Nf6 {[%clk 0:02:51.4]} 2. Bg5 {[%clk 0:03:00.1]}
2... e6 {[%clk 0:02:50.2]} 3. e4 {[%clk 0:02:59.3]} 3... h6 {[%clk 0:02:47.2]}
4. Bxf6 {[%clk 0:02:59.6]} 4... Qxf6 {[%clk 0:02:48.1]} 5. Nf3 {[%clk 0:03:00]}
5... d5 {[%clk 0:02:46.9]} 6. Nbd2 {[%clk 0:02:57.8]} 6... g6 {[%clk 0:02:34.9]}
7. Bd3 {[%clk 0:02:50.5]} 7... Bg7 {[%clk 0:02:32.4]} 8. O-O {[%clk 0:02:47.6]}
8... O-O {[%clk 0:02:30.8]} 9. Re1 {[%clk 0:02:34.3]} 9... c6 {[%clk 0:02:25.4]}
10. c3 {[%clk 0:02:28.5]} 10... Nd7 {[%clk 0:02:22.7]} 11. a4 {[%clk 0:02:26.3]}
11... a5 {[%clk 0:02:21.2]} 12. Nf1 {[%clk 0:02:15.5]} 12... b6 {[%clk
0:02:16.4]} 13. Ng3 {[%clk 0:02:08.7]} 13... Ba6 {[%clk 0:02:12]} 14. Bxa6
{[%clk 0:02:07.1]} 14... Rxa6 {[%clk 0:02:12.9]} 15. exd5 {[%clk 0:02:06.7]}
15... cxd5 {[%clk 0:02:07.6]} 16. Qd3 {[%clk 0:02:02.7]} 16... Ra7 {[%clk
0:02:06.2]} 17. Qb5 {[%clk 0:01:55.7]} 17... Rb8 {[%clk 0:01:58.3]} 18. Nf1
{[%clk 0:01:54.2]} 18... Qd8 {[%clk 0:01:53.6]} 19. Ne3 {[%clk 0:01:51.7]} 19...
Qc7 {[%clk 0:01:48.5]} 20. h3 {[%clk 0:01:49.5]} 20... Rc8 {[%clk 0:01:46.3]}
21. Ng4 {[%clk 0:01:48.8]} 21... Qc6 {[%clk 0:01:45.1]} 22. Qxc6 {[%clk
0:01:45.4]} 22... Rxc6 {[%clk 0:01:44]} 23. Kf1 {[%clk 0:01:43.6]} 23... h5
{[%clk 0:01:41.8]} 24. Ne3 {[%clk 0:01:42.8]} 24... Rb7 {[%clk 0:01:39.7]} 25.
Nd1 {[%clk 0:01:37.6]} 25... b5 {[%clk 0:01:38.5]} 26. axb5 {[%clk 0:01:38.5]}
26... Rxb5 {[%clk 0:01:39.2]} 27. Ke2 {[%clk 0:01:33.1]} 27... Nb6 {[%clk
0:01:34.4]} 28. Nd2 {[%clk 0:01:28.3]} 28... Bh6 {[%clk 0:01:33.6]} 29. Kd3
{[%clk 0:01:18.2]} 29... Bxd2 {[%clk 0:01:30.1]} 30. Kxd2 {[%clk 0:01:19.1]}
30... Nc4+ {[%clk 0:01:29.6]} 31. Kc2 {[%clk 0:01:12.5]} 31... Rcb6 {[%clk
0:01:30.5]} 32. Ra2 {[%clk 0:01:10.9]} 32... Kg7 {[%clk 0:01:26.7]} 33. Re2
{[%clk 0:01:08.7]} 33... Kf6 {[%clk 0:01:25]} 34. Kc1 {[%clk 0:01:06.3]} 34...
h4 {[%clk 0:01:23.1]} 35. Ne3 {[%clk 0:01:06.1]} 35... Nd6 {[%clk 0:01:15.5]}
36. Ng4+ {[%clk 0:01:05.4]} 36... Ke7 {[%clk 0:01:12.3]} 37. Ne5 {[%clk
0:01:05.1]} 37... Nf5 {[%clk 0:00:50.7]} 38. Nf3 {[%clk 0:01:01]} 38... Kf6
{[%clk 0:00:48]} 39. Kc2 {[%clk 0:00:52]} 39... Rc6 {[%clk 0:00:45.5]} 40. Kd2
{[%clk 0:00:48.4]} 40... Rcb6 {[%clk 0:00:44.8]} 41. Kc2 {[%clk 0:00:48.2]}
41... Nd6 {[%clk 0:00:42.3]} 42. Ne5 {[%clk 0:00:46.6]} 42... Rb7 {[%clk
0:00:39.3]} 43. Nf3 {[%clk 0:00:40.1]} 43... Nc4 {[%clk 0:00:35.4]} 44. Kc1
{[%clk 0:00:40.3]} 44... g5 {[%clk 0:00:35.2]} 45. Ne5 {[%clk 0:00:38.3]} 45...
Nxe5 {[%clk 0:00:30.9]} 46. Rxe5 {[%clk 0:00:36.7]} 46... R7b6 {[%clk
0:00:24.9]} 47. Kc2 {[%clk 0:00:36.1]} 47... Kg6 {[%clk 0:00:24.1]} 48. Kc1
{[%clk 0:00:33.2]} 48... f6 {[%clk 0:00:22.9]} 49. Re2 {[%clk 0:00:33.7]} 49...
Kf5 {[%clk 0:00:23.8]} 50. Re3 {[%clk 0:00:33.3]} 50... e5 {[%clk 0:00:22.2]}
51. Rf3+ {[%clk 0:00:32.2]} 51... Kg6 {[%clk 0:00:17.3]} 52. dxe5 {[%clk
0:00:30.1]} 52... fxe5 {[%clk 0:00:18.2]} 53. Rd3 {[%clk 0:00:28.6]} 53... Kf5
{[%clk 0:00:16.3]} 54. Kc2 {[%clk 0:00:27.6]} 54... e4 {[%clk 0:00:16]} 55. Rd4
{[%clk 0:00:26.5]} 55... Kf4 {[%clk 0:00:15.5]} 56. Rda4 {[%clk 0:00:25.2]}
56... Ra6 {[%clk 0:00:12.4]} 57. b4 {[%clk 0:00:22.6]} 57... Rc6 {[%clk
0:00:11.5]} 58. Rxa5 {[%clk 0:00:22.6]} 58... Rxb4 {[%clk 0:00:09.8]} 59. Rxd5
{[%clk 0:00:23]} 59... Rbc4 {[%clk 0:00:07.6]} 60. Ra3 {[%clk 0:00:23.2]} 60...
e3 {[%clk 0:00:05.7]} 61. fxe3+ {[%clk 0:00:24.1]} 61... Kxe3 {[%clk 0:00:04.5]}
62. Rxg5 {[%clk 0:00:24.6]} 62... Kf2 {[%clk 0:00:03.1]} 63. Kd3 {[%clk
0:00:19.5]} 63... R4c5 {[%clk 0:00:01]} 64. Ra2+ {[%clk 0:00:18.9]} 1-0

[Event "*** Titled Tuesday Blitz"]
[Site "Chess.com"]
[Date "2021.03.30"]
[Round "8"]
[White "VD_coach"]
[Black "Sadykov_Ramil"]
[Result "0-1"]
[WhiteElo "2481"]
[BlackElo "2602"]
[TimeControl "180+1"]
[EndTime "11:30:10 PDT"]
[Termination "Sadykov_Ramil won by resignation"]

1. d4 {[%clk 0:03:00]} 1... d5 {[%clk 0:02:59.6]} 2. Nf3 {[%clk 0:02:59.3]} 2...
Nf6 {[%clk 0:02:59.5]} 3. c4 {[%clk 0:02:58.8]} 3... e6 {[%clk 0:02:59.4]} 4.
Nc3 {[%clk 0:02:58.6]} 4... Be7 {[%clk 0:02:58.8]} 5. cxd5 {[%clk 0:02:57.8]}
5... exd5 {[%clk 0:02:59.1]} 6. Bg5 {[%clk 0:02:58.2]} 6... c6 {[%clk
0:02:58.1]} 7. e3 {[%clk 0:02:58.4]} 7... Bf5 {[%clk 0:02:58]} 8. Bd3 {[%clk
0:02:58.2]} 8... Bxd3 {[%clk 0:02:58]} 9. Bxf6 {[%clk 0:02:58.5]} 9... Bxf6
{[%clk 0:02:52.4]} 10. Qxd3 {[%clk 0:02:58]} 10... a5 {[%clk 0:02:51.8]} 11. O-O
{[%clk 0:02:56.4]} 11... O-O {[%clk 0:02:51.6]} 12. a3 {[%clk 0:02:51.3]} 12...
a4 {[%clk 0:02:49.1]} 13. Qc2 {[%clk 0:02:47.3]} 13... Qa5 {[%clk 0:02:49]} 14.
Rfe1 {[%clk 0:02:37.5]} 14... Nd7 {[%clk 0:02:45.8]} 15. e4 {[%clk 0:02:37.5]}
15... dxe4 {[%clk 0:02:45.3]} 16. Rxe4 {[%clk 0:02:37.6]} 16... Nb6 {[%clk
0:02:37.4]} 17. Ne5 {[%clk 0:02:29.4]} 17... Rfe8 {[%clk 0:02:32.5]} 18. Rae1
{[%clk 0:02:28.6]} 18... Re6 {[%clk 0:02:20.1]} 19. Ng4 {[%clk 0:02:04]} 19...
Bxd4 {[%clk 0:02:02.5]} 20. Rxe6 {[%clk 0:01:56.6]} 20... fxe6 {[%clk
0:02:03.4]} 21. Qe4 {[%clk 0:01:39.5]} 21... e5 {[%clk 0:01:59.3]} 22. Nxe5
{[%clk 0:01:23.4]} 22... Bxe5 {[%clk 0:01:53.6]} 23. Qxe5 {[%clk 0:01:23.7]}
23... Qxe5 {[%clk 0:01:54.2]} 24. Rxe5 {[%clk 0:01:24.6]} 24... Nc4 {[%clk
0:01:53]} 25. Re7 {[%clk 0:00:48.4]} 25... b5 {[%clk 0:01:43.6]} 26. Rc7 {[%clk
0:00:47.1]} 26... b4 {[%clk 0:00:42.2]} 27. axb4 {[%clk 0:00:38.3]} 27... a3
{[%clk 0:00:37.1]} 28. bxa3 {[%clk 0:00:12.5]} 28... Rxa3 {[%clk 0:00:38]} 29.
h4 {[%clk 0:00:06.2]} 29... Rxc3 {[%clk 0:00:33.1]} 30. Rxc6 {[%clk 0:00:06.2]}
30... Kf7 {[%clk 0:00:18.7]} 31. b5 {[%clk 0:00:06.1]} 31... Rc1+ {[%clk
0:00:04]} 32. Kh2 {[%clk 0:00:06]} 32... Rb1 {[%clk 0:00:03]} 33. Rxc4 {[%clk
0:00:05.6]} 33... Rxb5 {[%clk 0:00:03.5]} 34. Rf4+ {[%clk 0:00:06.1]} 34... Kg6
{[%clk 0:00:02.9]} 35. g3 {[%clk 0:00:07]} 35... h5 {[%clk 0:00:03.1]} 36. Kg2
{[%clk 0:00:07.9]} 36... Kh6 {[%clk 0:00:03.4]} 37. Rf3 {[%clk 0:00:08.7]} 37...
g6 {[%clk 0:00:03.9]} 38. Re3 {[%clk 0:00:09.6]} 38... Rc5 {[%clk 0:00:04.4]}
39. Re6 {[%clk 0:00:09.9]} 39... Rc4 {[%clk 0:00:04.9]} 40. Re3 {[%clk 0:00:10]}
40... Rd4 {[%clk 0:00:04.9]} 41. Kf3 {[%clk 0:00:10.4]} 41... Rc4 {[%clk
0:00:05.3]} 42. Re4 {[%clk 0:00:11.3]} 42... Rc3+ {[%clk 0:00:05.6]} 43. Kf4
{[%clk 0:00:11.8]} 43... Rc2 {[%clk 0:00:05.5]} 44. f3 {[%clk 0:00:12.2]} 44...
Rc8 {[%clk 0:00:05.6]} 45. Rd4 {[%clk 0:00:12.5]} 45... Rf8+ {[%clk 0:00:05.8]}
46. Ke3 {[%clk 0:00:12.9]} 46... Re8+ {[%clk 0:00:06.1]} 47. Re4 {[%clk
0:00:13.3]} 47... Ra8 {[%clk 0:00:06.5]} 48. Re5 {[%clk 0:00:13.5]} 48... Ra3+
{[%clk 0:00:06.2]} 49. Kf4 {[%clk 0:00:13.8]} 49... Ra4+ {[%clk 0:00:06.3]} 50.
Re4 {[%clk 0:00:14.2]} 50... Ra5 {[%clk 0:00:07]} 51. Rd4 {[%clk 0:00:14.2]}
51... Rb5 {[%clk 0:00:07]} 52. Ke4 {[%clk 0:00:14.5]} 52... Ra5 {[%clk
0:00:06.7]} 53. Rd5 {[%clk 0:00:14.7]} 53... Ra3 {[%clk 0:00:06.3]} 54. Ke5
{[%clk 0:00:15]} 54... Rxf3 {[%clk 0:00:06.1]} 55. Rd4 {[%clk 0:00:12.7]} 55...
Rxg3 {[%clk 0:00:05.3]} 56. Rf4 {[%clk 0:00:12.9]} 56... g5 {[%clk 0:00:04.2]}
57. Rf6+ {[%clk 0:00:12.4]} 57... Kg7 {[%clk 0:00:04.3]} 58. hxg5 {[%clk
0:00:12.6]} 58... Rxg5+ {[%clk 0:00:04.4]} 59. Rf5 {[%clk 0:00:12.9]} 59... Kg6
{[%clk 0:00:04.7]} 60. Rxg5+ {[%clk 0:00:11.3]} 60... Kxg5 {[%clk 0:00:05.6]}
61. Ke4 {[%clk 0:00:12.2]} 61... Kg4 {[%clk 0:00:06.2]} 62. Ke3 {[%clk
0:00:12.9]} 62... Kg3 {[%clk 0:00:06.8]} 63. Ke2 {[%clk 0:00:13.8]} 63... Kg2
{[%clk 0:00:07.4]} 0-1

[Event "*** Titled Tuesday Blitz"]
[Site "Chess.com"]
[Date "2021.03.30"]
[Round "8"]
[White "ViktoriyaTarasova"]
[Black "Bhagya_2312"]
[Result "1-0"]
[WhiteElo "2411"]
[BlackElo "2177"]
[TimeControl "180+1"]
[EndTime "11:30:11 PDT"]
[Termination "ViktoriyaTarasova won on time"]

1. d4 {[%clk 0:03:00.9]} 1... f5 {[%clk 0:02:44.8]} 2. c4 {[%clk 0:03:00.8]}
2... Nf6 {[%clk 0:02:42.8]} 3. g3 {[%clk 0:03:01.4]} 3... e6 {[%clk 0:02:42.2]}
4. Bg2 {[%clk 0:03:02.1]} 4... d5 {[%clk 0:02:42.5]} 5. Nf3 {[%clk 0:03:02.5]}
5... c6 {[%clk 0:02:42.7]} 6. O-O {[%clk 0:03:02.8]} 6... Bd6 {[%clk 0:02:42.3]}
7. Qc2 {[%clk 0:03:02.1]} 7... O-O {[%clk 0:02:40.8]} 8. b3 {[%clk 0:03:01.3]}
8... Qe7 {[%clk 0:02:39.3]} 9. Bb2 {[%clk 0:03:00.3]} 9... b6 {[%clk 0:02:25.7]}
10. Ne5 {[%clk 0:02:59.5]} 10... Bb7 {[%clk 0:02:23.7]} 11. Nd2 {[%clk
0:02:58.7]} 11... Nbd7 {[%clk 0:02:19.4]} 12. Ndf3 {[%clk 0:02:58.1]} 12... Ne4
{[%clk 0:02:14.6]} 13. Rac1 {[%clk 0:02:54.3]} 13... c5 {[%clk 0:02:10.6]} 14.
e3 {[%clk 0:02:53.3]} 14... Ndf6 {[%clk 0:02:04.3]} 15. Rfd1 {[%clk 0:02:49.8]}
15... Rac8 {[%clk 0:02:02]} 16. Qe2 {[%clk 0:02:43.5]} 16... Ng4 {[%clk
0:01:38.7]} 17. Rf1 {[%clk 0:02:38.3]} 17... Nxe5 {[%clk 0:01:34.3]} 18. dxe5
{[%clk 0:02:30.9]} 18... Bb8 {[%clk 0:01:31.6]} 19. Ne1 {[%clk 0:02:30.5]} 19...
dxc4 {[%clk 0:01:15]} 20. bxc4 {[%clk 0:02:21.5]} 20... Rcd8 {[%clk 0:01:13.8]}
21. Nd3 {[%clk 0:02:18.4]} 21... Ng5 {[%clk 0:01:09.3]} 22. f3 {[%clk 0:02:13]}
22... Nf7 {[%clk 0:00:52.6]} 23. Rfd1 {[%clk 0:01:54]} 23... g5 {[%clk
0:00:43.9]} 24. f4 {[%clk 0:01:52.2]} 24... g4 {[%clk 0:00:41.8]} 25. Nf2 {[%clk
0:01:45.7]} 25... h5 {[%clk 0:00:34.8]} 26. Rxd8 {[%clk 0:01:42.6]} 26... Rxd8
{[%clk 0:00:34]} 27. Rd1 {[%clk 0:01:43.2]} 27... Bxg2 {[%clk 0:00:32.4]} 28.
Kxg2 {[%clk 0:01:41.9]} 28... h4 {[%clk 0:00:32.5]} 29. gxh4 {[%clk 0:01:33.8]}
29... Qxh4 {[%clk 0:00:31.7]} 30. Rxd8+ {[%clk 0:01:31.2]} 30... Qxd8 {[%clk
0:00:31.1]} 31. Nh1 {[%clk 0:01:18.9]} 31... Qd7 {[%clk 0:00:20.8]} 32. Ng3
{[%clk 0:01:17.1]} 32... Nd8 {[%clk 0:00:20.2]} 33. Nh5 {[%clk 0:01:14.2]} 33...
Qf7 {[%clk 0:00:19]} 34. Nf6+ {[%clk 0:01:13.2]} 34... Kg7 {[%clk 0:00:19.3]}
35. Qd2 {[%clk 0:01:07.3]} 35... Bc7 {[%clk 0:00:17.9]} 36. Kg1 {[%clk
0:00:56.2]} 36... Qe7 {[%clk 0:00:16.6]} 37. Qg2 {[%clk 0:00:55.6]} 37... Nf7
{[%clk 0:00:16.1]} 38. h3 {[%clk 0:00:54.6]} 38... Nh6 {[%clk 0:00:15.8]} 39.
hxg4 {[%clk 0:00:54.8]} 39... fxg4 {[%clk 0:00:16]} 40. Nxg4 {[%clk 0:00:54.2]}
40... Qh4 {[%clk 0:00:14.4]} 41. Nf6+ {[%clk 0:00:44.1]} 41... Kf7 {[%clk
0:00:13.5]} 42. Bc3 {[%clk 0:00:39.9]} 42... Bd8 {[%clk 0:00:08.8]} 43. Ne4
{[%clk 0:00:39.1]} 43... Qg4 {[%clk 0:00:08.2]} 44. Nd6+ {[%clk 0:00:38.8]}
44... Ke7 {[%clk 0:00:06.2]} 45. Nc8+ {[%clk 0:00:37.3]} 45... Kd7 {[%clk
0:00:05.2]} 46. Qxg4 {[%clk 0:00:16.6]} 46... Nxg4 {[%clk 0:00:04.8]} 47. Nxa7
{[%clk 0:00:14.6]} 47... Nxe3 {[%clk 0:00:05.1]} 48. Kf2 {[%clk 0:00:12.6]}
48... Nxc4 {[%clk 0:00:05.2]} 49. Kf3 {[%clk 0:00:11.8]} 49... Bc7 {[%clk
0:00:02.5]} 50. Ke4 {[%clk 0:00:12.3]} 50... Na5 {[%clk 0:00:01.4]} 51. Nb5
{[%clk 0:00:11.9]} 51... Nc6 {[%clk 0:00:01.6]} 52. Nxc7 {[%clk 0:00:10]} 52...
Kxc7 {[%clk 0:00:01.6]} 53. f5 {[%clk 0:00:10.8]} 53... exf5+ {[%clk 0:00:01.3]}
54. Kxf5 {[%clk 0:00:11.5]} 54... b5 {[%clk 0:00:01.6]} 55. e6 {[%clk
0:00:11.5]} 55... Kd6 {[%clk 0:00:01.9]} 56. Be1 {[%clk 0:00:11]} 56... b4
{[%clk 0:00:02.1]} 57. Bg3+ {[%clk 0:00:11.6]} 57... Ke7 {[%clk 0:00:02.3]} 58.
Bh4+ {[%clk 0:00:11.3]} 58... Ke8 {[%clk 0:00:02.5]} 59. Ke4 {[%clk 0:00:10.4]}
59... c4 {[%clk 0:00:01.8]} 60. Kd5 {[%clk 0:00:09.6]} 60... Na5 {[%clk
0:00:02.1]} 61. Be1 {[%clk 0:00:06.2]} 61... b3 {[%clk 0:00:02.2]} 62. axb3
{[%clk 0:00:05.9]} 62... cxb3 {[%clk 0:00:01.4]} 63. Bc3 {[%clk 0:00:06.3]} 1-0